Cogmind - Beta 13 @@@ ROGUE MODE // 2024.06.08 @ 20:01:39 Player: Sionnis Result: Destroyed by Y-54 Guardian with Gatling Laser Performance ------------- Evolutions (4) 2000 Regions Visited (12) 2400 Robots Destroyed (203) 1015 Value Destroyed (6702) 6702 Prototype IDs (26) 520 Alien Tech Used (0) 0 Bonus (1330) 1330 TOTAL SCORE: 13967 Bonus ------- High Alert Combat Kills 767 Follower Combat Kills 220 Entered Garrisons 200 Used RIF Installer 500 Met Data Miner 300 Friendly Fire -657 Cogmind --------- Core Integrity 0/850 Matter 111/300 Energy 100/100 System Corruption 4% Temperature Hot (261) Movement Walking (120) Location -6/Extension Parts ------- > --- POWER (1) -------- (None) > --- PROPULSION (4) --- Flexi-carbon Leg Flexi-carbon Leg Wheel > --- UTILITY (6) ------ Improved Sensor Array Terrain Scanner Targeting Computer Hardened Light Armor Plating Thermal Shield > --- WEAPON (4) ------- Improved Spread Laser Phase Cannon Gauss Rifle > --- INVENTORY (5) ---- Light Deuterium Engine Advanced ECM Suite Impact Mace Peak State ------------ > --- POWER ------------ Enhanced Nuclear Core > --- PROPULSION ------- Light Treads Armored Treads Armored Huge Wheel > --- UTILITY ---------- Advanced Heat Sink Advanced Heat Sink Large Storage Unit Armor Integrity Analyzer Hardened Medium Armor Plating Improved Medium Armor Plating > --- WEAPON ----------- Improved Spread Laser Wave Gun Improved Heavy Machine Gun Improved Heavy Machine Gun > --- INVENTORY -------- Light Treads Light Treads Light Treads Advanced Signal Interpreter Improved Light Armor Plating Improved Shield Generator System Restoration Module Improved Spread Laser Flak Gun Flak Gun Heavy Missile Launcher Impact Mace [Rating: 66] Favorites ----------- Power Enhanced Nuclear Core Engine Light Ion Engine Power Core Enhanced Nuclear Core Reactor Cold Fusion Reactor Propulsion Light Treads Treads Light Treads Leg Flexi-carbon Leg Wheel Armored Huge Wheel Utility Large Storage Unit Device Improved Cooling System Storage Large Storage Unit Processor Armor Integrity Analyzer Hackware Hacking Suite Protection Improved Medium Armor Plating Weapon Flak Gun Energy Gun Improved Spread Laser Energy Cannon Phase Cannon Ballistic Gun Flak Gun Launcher Heavy Missile Launcher Special Weapon Mining Laser Impact Weapon Impact Mace Build | -11 -10 -10 -10 -8 -8 -8 -7 -7 -7 -6 -6 -6 ------- Run | Yrd Mat Min Sub Mat Gar Mat Fac Low Dat Pro Fac Ext Slots Evolved 8 | . . . . 4 . . 2 . . . 2 . Power . | . . . . . . . . . . . . . Propulsion 2 | . . . . 1 . . 1 . . . . . Utility 4 | . . . . 2 . . 1 . . . 1 . Weapon 2 | . . . . 1 . . . . . . 1 . Parts Attached 181 | 4 6 3 17 18 13 11 19 5 3 1 63 18 Power 19 | 1 1 1 1 2 4 . 1 . . . 7 1 Engine 10 | 1 1 1 1 2 1 . . . . . 2 1 Core 8 | . . . . . 3 . 1 . . . 4 . Reactor 1 | . . . . . . . . . . . 1 . Propulsion 37 | 3 . . 5 3 5 2 2 1 . 1 11 4 Treads 28 | 2 . . 2 3 5 2 2 1 . 1 9 1 Leg 2 | . . . . . . . . . . . . 2 Wheel 7 | 1 . . 3 . . . . . . . 2 1 Hover . | . . . . . . . . . . . . . Flight . | . . . . . . . . . . . . . Utility 50 | . 3 . 4 5 2 1 6 3 . . 18 8 Device 22 | . . . 1 3 . 1 4 . . . 7 6 Storage 2 | . 1 . 1 . . . . . . . . . Processor 9 | . 2 . 1 . . . 2 . . . 3 1 Hackware 1 | . . . . . . . . . . . 1 . Protection 16 | . . . 1 2 2 . . 3 . . 7 1 Artifact . | . . . . . . . . . . . . . Weapon 75 | . 2 2 7 8 2 8 10 1 3 . 27 5 Energy Gun 20 | . . . . 1 . 3 4 . 1 . 10 1 Energy Cannon 1 | . . . . . . . . . . . . 1 Ballistic Gun 50 | . 2 1 7 7 2 5 5 1 2 . 16 2 Ballistic Cannon . | . . . . . . . . . . . . . Launcher 1 | . . . . . . . . . . . 1 . Special Weapon 1 | . . 1 . . . . . . . . . . Impact Weapon 2 | . . . . . . . 1 . . . . 1 Slashing Weapon . | . . . . . . . . . . . . . Piercing Weapon . | . . . . . . . . . . . . . Special Melee Weapon . | . . . . . . . . . . . . . Unidentified Prototypes 12 | . . . . 1 . 3 5 . . . 3 . Parts Lost 44 | . . 1 2 2 3 . 1 2 . 1 28 4 Power 7 | . . 1 1 1 . . . . . . 3 1 Propulsion 13 | . . . 1 . 1 . . . . 1 9 1 Utility 13 | . . . . 1 1 . . 2 . . 8 1 Weapon 11 | . . . . . 1 . 1 . . . 8 1 Highest Loss Streak 15 | . . 1 1 2 1 . 1 2 . 1 15 3 To Critical Strikes 2 | . . . . . 1 . . . . . 1 . Average Slot Usage (%) 95 | . 96 98 96 96 99 99 98 98 70 91 92 63 Engine 3 | . 14 12 10 8 2 . . . . . . 5 Core 4 | . . . . . 6 9 7 7 7 7 5 . Treads 25 | . 28 28 16 26 26 27 30 30 30 29 20 5 Wheel 1 | . . . 11 . . . . . . . 1 3 Device 8 | . . . . 8 9 9 10 11 7 7 10 13 Storage 8 | . 11 14 14 9 9 9 7 7 7 7 5 . Processor 6 | . 13 14 11 . . . 5 7 7 7 8 4 Protection 10 | . . . 1 17 18 18 11 9 7 7 10 1 Energy Gun 4 | . . . . 3 . 3 4 7 . 7 10 5 Ballistic Gun 19 | . 27 27 28 22 27 23 17 15 1 15 15 9 Naked Turns 19 | . . . . . . . . . . . 15 4 Heaviest Build 74 | 3 31 31 32 55 56 56 55 61 61 61 74 41 Greatest Support 80 | 40 40 40 40 60 60 60 80 80 80 80 80 40 Greatest Overweight (x) 4 | . . . 1 1 1 . . . . . 2 4 Average Overweight (x) . | . . . . . . . . . . . . 1 Largest Inventory Capacity 15 | 5 15 15 15 15 15 15 15 15 15 15 15 5 Average Capacity 14 | 5 12 15 14 15 15 15 15 15 15 15 14 5 Most Carried 15 | 2 12 15 15 15 14 15 15 15 13 13 15 5 Average Carried 12 | 1 8 12 13 13 11 13 14 14 13 12 12 2 Final Capacity 15 | 5 15 15 15 15 15 15 15 15 15 15 5 5 Final Carried 15 | 2 12 14 13 10 13 15 15 13 13 13 5 3 Class Distribution -------------------- 53% | Scavenger-Tank 21% | Mutant 17% | Scavenger-Gunner 5% | Tank Dominant Class ---------------- Mutant | -10/Materials Mutant | -10/Mines Mutant | -10/Subcaves Scavenger-Tank | -8/Materials Scavenger-Tank | -8/Garrison Scavenger-Tank | -8/Materials Scavenger-Tank | -7/Factory Scavenger-Tank | -7/Lower Caves Mutant | -7/Data Miner Scavenger-Gunner | -6/Proximity Caves Scavenger-Gunner | -6/Factory Scavenger-Tank | -6/Extension Resources | -11 -10 -10 -10 -8 -8 -8 -7 -7 -7 -6 -6 -6 ----------- Run | Yrd Mat Min Sub Mat Gar Mat Fac Low Dat Pro Fac Ext Matter Collected 5803 | 179 344 222 378 812 1007 195 597 299 . 161 1419 190 Remotely . | . . . . . . . . . . . . . Salvage Created 7455 | . 452 136 153 1084 1055 264 787 664 . 75 2528 257 Parts 392 | . 40 6 9 77 61 17 45 21 . 1 101 14 Haulers Intercepted 11 | . 1 . . 3 . 4 2 . . . 1 . Recyclers Shooed 10 | . 1 . . 1 . . 1 . . . 7 . Parts Field Recycled . | . . . . . . . . . . . . . Retrieved Matter . | . . . . . . . . . . . . . Parts Self-Destructed 43 | . . . 9 . . . . 27 . 7 . . Prevented . | . . . . . . . . . . . . . Kills | -11 -10 -10 -10 -8 -8 -8 -7 -7 -7 -6 -6 -6 ------- Run | Yrd Mat Min Sub Mat Gar Mat Fac Low Dat Pro Fac Ext Combat Hostiles Destroyed 149 | . 8 9 3 21 31 2 14 14 . 3 40 4 Guns 147 | . 8 9 3 21 31 2 14 14 . 3 39 3 Cannons 1 | . . . . . . . . . . . . 1 AOE 1 | . . . . . . . . . . . 1 . Classes Destroyed 24 | . 9 1 2 4 3 . . 2 . 1 2 . Worker 5 | . 1 . . 2 . . 2 . . . . . Builder 8 | . 1 . . 2 . . 1 . . . 3 1 Tunneler 2 | . 1 . . 1 . . . . . . . . Hauler 11 | . 1 . . 3 . 4 2 . . . 1 . Recycler 12 | . 1 . . 1 . . 4 . . . 6 . Mechanic 1 | . . . . 1 . . . . . . . . Operator 4 | . 2 . . 1 . . . . . . 1 . Watcher 13 | . 3 . . 3 . . 2 . . . 4 1 Swarmer 44 | . 6 3 . 7 8 . 9 7 . . 4 . Grunt 37 | . 2 . . 6 8 1 1 2 . . 15 2 Brawler 2 | . . . . . . . . . . . 2 . Duelist 5 | . . . . . 2 . . 2 . . 1 . Protector 1 | . . . . . . . . . . . 1 . Sentry 26 | . . . . 5 9 1 2 2 . 1 5 1 Specialist 6 | . . . . 2 2 . . . . . 2 . Hunter 9 | . . . . . 3 . 1 1 . 1 2 1 Programmer 10 | . . . . . 1 . 1 . . . 8 . Heavy 1 | . . . . 1 . . . . . . . . Behemoth 1 | . . . . . . . . . . 1 . . Cobbler 1 | . . . 1 . . . . . . . . . Subdweller 3 | . . . 3 . . . . . . . . . Decomposer 2 | . . . . . . . . 2 . . . . Samaritan 1 | . . . . . . . . 1 . . . . Assembled 6 | . . 6 . . . . . . . . . . Butcher 1 | . . . . . . . . 1 . . . . Mutant 1 | . . . . . . . . 1 . . . . Best Kill Streak 13 | . 5 4 1 5 13 2 6 9 . 1 7 2 Combat Bots Only 13 | . 3 4 1 4 13 1 3 9 . 1 6 2 Max Kills in Single Turn 3 | . 1 1 1 2 3 1 2 2 . 1 2 1 Gunslinging 1 | . . . . . 1 . . 1 . . 1 . Exploded 1 | . . . . . . . . . . . 1 . Melee . | . . . . . . . . . . . . . Uniques/NPCs Destroyed . | . . . . . . . . . . . . . Combat | -11 -10 -10 -10 -8 -8 -8 -7 -7 -7 -6 -6 -6 -------- Run | Yrd Mat Min Sub Mat Gar Mat Fac Low Dat Pro Fac Ext Hostile Shots Fired 975 | . 23 33 28 65 136 3 99 59 . 52 434 43 Missed 293 | . 8 6 6 24 39 . 35 19 . 21 121 14 Damage Taken 10396 | . 114 417 459 862 1289 85 711 584 . 477 5018 380 Core 1540 | . 16 85 140 109 151 25 94 49 . 12 759 100 Absorbed by Shields 332 | . . . . . 70 . 135 127 . . . . Ignored by Resistances 39 | . . . . . . . . . . . . 39 Regen/Repaired (Parts) 645 | . . . . 136 . . 223 . . . 286 . Core Remaining (%) 57 | 100 . . 3 . . 48 . . . 77 . . Volleys Fired 404 | . 31 26 27 56 58 13 40 27 . 13 101 12 Largest 4 | . 2 2 2 3 3 3 3 3 . 3 4 4 Hottest 216 | . 46 100 63 117 84 106 128 128 . 128 206 216 Shots Fired 1198 | . 62 51 54 162 170 39 121 81 . 39 381 38 Gun 1184 | . 62 50 54 162 170 39 121 81 . 39 380 26 Cannon 12 | . . . . . . . . . . . . 12 Launcher 1 | . . . . . . . . . . . 1 . Special 1 | . . 1 . . . . . . . . . . Kinetic 910 | . 62 50 54 144 170 35 84 54 . 26 216 15 Thermal 283 | . . 1 . 18 . . 37 27 . 13 164 23 Explosive 1 | . . . . . . . . . . . 1 . Electromagnetic 4 | . . . . . . 4 . . . . . . Robot Hit Streak 46 | . 5 6 46 15 17 4 5 11 . 7 17 7 Robot Miss Streak 19 | . 4 4 1 19 12 5 10 11 . 6 13 6 Penetration Max 1 | . . . . . 1 1 . . . . . 1 Secondary Targets 34 | . . 2 . 2 12 . 4 4 . . 10 . Max Gunslinging Chain 2 | . . 1 . 1 2 . 1 1 . . 1 . Shots Hit Robots 893 | . 34 28 53 123 139 26 89 55 . 35 282 29 Core Hits 830 | . 18 14 10 122 171 16 77 70 . 22 288 22 Critical Kills 1 | . . 1 . . . . . . . . . . Critical Parts Destroyed 7 | . . . 3 . 1 1 2 . . . . . Critical Strikes 12 | . . 1 3 2 1 1 2 . . . 2 . Burn 4 | . . . . 2 . . . . . . 2 . Destroy 8 | . . 1 3 . 1 1 2 . . . . . Melee Attacks . | . . . . . . . . . . . . . Impact . | . . . . . . . . . . . . . Slashing . | . . . . . . . . . . . . . Piercing . | . . . . . . . . . . . . . Sneak Attacks . | . . . . . . . . . . . . . Combat Hostiles . | . . . . . . . . . . . . . Follow-up Attacks . | . . . . . . . . . . . . . Damage Inflicted 17889 | . 590 432 928 2030 2391 485 1722 1181 . 816 6609 705 Guns 16818 | . 590 432 928 2030 2391 478 1454 1175 . 816 6095 429 Cannons 276 | . . . . . . . . . . . . 276 Explosions 781 | . . . . . . . 267 . . . 514 . Melee . | . . . . . . . . . . . . . Ramming 14 | . . . . . . 7 1 6 . . . . Kinetic 11596 | . 590 432 928 1776 2391 423 901 591 . 492 2835 237 Thermal 5710 | . . . . 254 . . 820 584 . 324 3260 468 Explosive 514 | . . . . . . . . . . . 514 . Electromagnetic 55 | . . . . . . 55 . . . . . . Impact . | . . . . . . . . . . . . . Slashing . | . . . . . . . . . . . . . Piercing . | . . . . . . . . . . . . . Highest Corruption 9 | . . . . . . . 1 1 1 1 9 7 Average Corruption 2 | . . . . . . . 1 1 1 1 3 6 Corruption Purged 12 | . . . . . . . . . . . 9 3 Corruption Blocked . | . . . . . . . . . . . . . Effects 51 | . . . . . . . 6 13 1 . 24 7 Message Errors 9 | . . . . . . . 2 2 . . 4 1 Matter Fused 12 | . . . . . . . 1 3 1 . 4 3 Heat Flow Errors 5 | . . . . . . . . 1 . . 4 . Energy Discharges 8 | . . . . . . . 1 4 . . 2 1 Data Loss (minor) 10 | . . . . . . . 1 2 . . 5 2 Data Loss (major) 4 | . . . . . . . . 1 . . 3 . Misfires 2 | . . . . . . . 1 . . . 1 . Weapon Failures 1 | . . . . . . . . . . . 1 . Overload Shots . | . . . . . . . . . . . . . Overflow Damage 132 | . . . . . . . 106 . . . 26 . Projectiles . | . . . . . . . . . . . . . Explosions 132 | . . . . . . . 106 . . . 26 . Melee . | . . . . . . . . . . . . . Knockbacks . | . . . . . . . . . . . . . Impact . | . . . . . . . . . . . . . Kinetic . | . . . . . . . . . . . . . Secondary . | . . . . . . . . . . . . . Self-Inflicted Damage 233 | . . . . . . 43 . . . . 190 . Shots 4 | . . . . . . 1 . . . . 3 . Rammed 3 | . . . . . . 1 1 1 . . . . Targets Rammed 3 | . . . . . . 1 1 1 . . . . Kicked . | . . . . . . . . . . . . . Crushed . | . . . . . . . . . . . . . Highest Temperature 590 | . 12 26 . 199 8 81 395 110 . 331 255 590 Average Temperature 78 | . 5 9 . 54 7 31 113 21 . 127 71 211 Received Heat Transfer 2113 | . . 120 18 198 423 18 95 126 . 404 621 90 Effects 19 | . . . . . . . 2 . . . 3 14 Shutdowns 2 | . . . . . . . . . . . . 2 Energy Bleed 1 | . . . . . . . 1 . . . . . Interference 9 | . . . . . . . . . . . 3 6 Matter Decay 2 | . . . . . . . . . . . . 2 Short Circuit 1 | . . . . . . . 1 . . . . . Damage (minor) 1 | . . . . . . . . . . . . 1 Damage (major) 3 | . . . . . . . . . . . . 3 Siege Activations . | . . . . . . . . . . . . . Robots Corrupted . | . . . . . . . . . . . . . Combat Hostiles . | . . . . . . . . . . . . . Parts Fried . | . . . . . . . . . . . . . Impact Corruptions . | . . . . . . . . . . . . . Robots Melted . | . . . . . . . . . . . . . Combat Hostiles . | . . . . . . . . . . . . . Parts Melted 3 | . . . . . 2 . . . . . 1 . Heat Transferred 5843 | . . . . 703 . . 650 480 . 275 3242 493 Parts Sabotaged 3 | . . . . . . . . . . . 3 . Parts Stolen . | . . . . . . . . . . . . . Parts Stripped . | . . . . . . . . . . . . . Power Chain Reactions . | . . . . . . . . . . . . . Alert | -11 -10 -10 -10 -8 -8 -8 -7 -7 -7 -6 -6 -6 ------- Run | Yrd Mat Min Sub Mat Gar Mat Fac Low Dat Pro Fac Ext Peak Influence 1083 | . 247 181 . 353 1083 610 374 . . . 756 446 Initial 527 | . . 96 . . 232 527 205 . . . 42 322 Average 303 | . 65 146 . 138 678 525 137 . . . 378 361 Maximum Alert Level 3 | . 1 . . 1 3 2 1 . . . 3 2 Low Security (%) 38 | 100 90 100 . 62 . . 56 . . . 15 . Level 1 27 | . 9 . . 37 12 . 43 . . . 32 84 Level 2 26 | . . . . . 36 100 . . . . 48 15 Level 3 7 | . . . . . 50 . . . . . 4 . Level 4 . | . . . . . . . . . . . . . Level 5 . | . . . . . . . . . . . . . High Security . | . . . . . . . . . . . . . Max Security . | . . . . . . . . . . . . . Squads Dispatched 24 | . 2 . . 4 . . 6 . . . 12 . Investigation 5 | . . . . 1 . . 1 . . . 3 . Extermination 6 | . . . . . . . 2 . . . 4 . Reinforcement 9 | . 2 . . 3 . . 2 . . . 2 . Assault 1 | . . . . . . . . . . . 1 . Garrison 3 | . . . . . . . 1 . . . 2 . Intercept . | . . . . . . . . . . . . . Searches Triggered . | . . . . . . . . . . . . . Construction Impeded 1 | . . . . . . . 1 . . . . . Haulers Reinforced . | . . . . . . . . . . . . . Active Scanning Responses . | . . . . . . . . . . . . . Cargo Convoy Interrupts 1 | . . . . . . . . . . . 1 . Stealth | -11 -10 -10 -10 -8 -8 -8 -7 -7 -7 -6 -6 -6 --------- Run | Yrd Mat Min Sub Mat Gar Mat Fac Low Dat Pro Fac Ext Distress Signals 9 | . 1 1 . 1 . . 2 . . . 3 1 Communications Jammed . | . . . . . . . . . . . . . Distress Signals . | . . . . . . . . . . . . . Times Spotted 211 | . 16 10 4 33 37 2 19 15 . 4 63 8 Peak Tracking Total 12 | . 3 6 2 6 7 1 4 9 . 1 12 3 Tactical Retreats 9 | . . 1 1 2 1 . 1 1 . . 1 1 Traps | -11 -10 -10 -10 -8 -8 -8 -7 -7 -7 -6 -6 -6 ------- Run | Yrd Mat Min Sub Mat Gar Mat Fac Low Dat Pro Fac Ext Traps Triggered 1 | . . . . . 1 . . . . . . . Indirectly . | . . . . . . . . . . . . . Trap Hack Attempts . | . . . . . . . . . . . . . Triggered . | . . . . . . . . . . . . . Disarmed . | . . . . . . . . . . . . . Reprogrammed . | . . . . . . . . . . . . . Reused . | . . . . . . . . . . . . . Traps Extracted . | . . . . . . . . . . . . . Installed . | . . . . . . . . . . . . . Triggered 1 | . . . . . . . . . . 1 . . Machines | -11 -10 -10 -10 -8 -8 -8 -7 -7 -7 -6 -6 -6 ---------- Run | Yrd Mat Min Sub Mat Gar Mat Fac Low Dat Pro Fac Ext Machines Disabled 22 | . . . . . . 2 6 . . . 14 . Max in Single Turn 6 | . . . . . . 2 6 . . . 6 . Garrison Access 1 | . . . . . . . . . . . 1 . Machines Repaired . | . . . . . . . . . . . . . Machines Dismantled . | . . . . . . . . . . . . . Machines Sabotaged . | . . . . . . . . . . . . . Overloaded Fab Kills . | . . . . . . . . . . . . . Hacking | -11 -10 -10 -10 -8 -8 -8 -7 -7 -7 -6 -6 -6 --------- Run | Yrd Mat Min Sub Mat Gar Mat Fac Low Dat Pro Fac Ext Machines Accessed 40 | . 3 . . 6 3 2 8 1 4 1 11 1 Terminals 20 | . 2 . . 3 3 1 4 . . 1 6 . Fabricators 1 | . . . . . . . 1 . . . . . Repair Stations 4 | . . . . 1 . 1 1 . . . 1 . Recycling Units 6 | . 1 . . 1 . . 1 . . . 2 1 Scanalyzers 2 | . . . . . . . 1 . . . 1 . Garrison Access 2 | . . . . 1 . . . . . . 1 . Total Hacks 106 | . 6 . . 18 4 4 15 1 30 1 26 1 Successful 61 | . 3 . . 8 1 1 6 1 30 1 9 1 Failed 45 | . 3 . . 10 3 3 9 . . . 17 . Catastrophic 8 | . . . . . 2 . 4 . . . 2 . Database Lockouts . | . . . . . . . . . . . . . Manual 23 | . 5 . . 5 . 2 2 . . . 9 . Terminals 44 | . 5 . . 10 4 2 6 . . 1 16 . Fabricators 2 | . . . . . . . 2 . . . . . Repair Stations 15 | . . . . 6 . 2 4 . . . 3 . Recycling Units 8 | . 1 . . 1 . . 1 . . . 4 1 Scanalyzers 4 | . . . . . . . 2 . . . 2 . Garrison Access 2 | . . . . 1 . . . . . . 1 . Terminal Hacks 40 | . 1 . . 2 1 . 2 1 30 1 2 . Record 12 | . . . . . . . . . 11 1 . . Part Schematic 12 | . . . . . . . 1 . 11 . . . Robot Schematic 5 | . . . . . . . . . 5 . . . Robot Analysis 1 | . 1 . . . . . . . . . . . Prototype ID Bank 5 | . . . . . . . 1 . 3 . 1 . Open Door 1 | . . . . . . . . 1 . . . . Emergency Access Points 1 | . . . . . 1 . . . . . . . Alert Level 1 | . . . . 1 . . . . . . . . Unreport Threat 1 | . . . . 1 . . . . . . . . Locate Traps 1 | . . . . . . . . . . . 1 . Fabricator Hacks . | . . . . . . . . . . . . . Repair Station Hacks 9 | . . . . 4 . 1 2 . . . 2 . Scan Component 5 | . . . . 2 . 1 1 . . . 1 . Repair 4 | . . . . 2 . . 1 . . . 1 . Recycling Unit Hacks 7 | . 1 . . 1 . . 1 . . . 3 1 Report Inventory 4 | . 1 . . 1 . . 1 . . . 1 . Retrieve Components 3 | . . . . . . . . . . . 2 1 Scanalyzer 1 | . . . . . . . 1 . . . . . Insert Component 1 | . . . . . . . 1 . . . . . Garrison Access Hacks 2 | . . . . 1 . . . . . . 1 . Unlock Access 1 | . . . . 1 . . . . . . . . Seal Access 1 | . . . . . . . . . . . 1 . Unauthorized Hacks 2 | . 1 . . . . . . . . . 1 . Terminals 2 | . 1 . . . . . . . . . 1 . Botnet 2 | . 1 . . . . . . . . . 1 . Fabricators . | . . . . . . . . . . . . . Repair Stations . | . . . . . . . . . . . . . Recycling Units . | . . . . . . . . . . . . . Scanalyzers . | . . . . . . . . . . . . . Garrison Access . | . . . . . . . . . . . . . Data Cores Recovered . | . . . . . . . . . . . . . Used . | . . . . . . . . . . . . . Hacking Detections 29 | . 2 . . 6 3 2 7 . . . 9 . Full Trace Events 6 | . . . . 1 1 . 1 . . . 3 . Feedback Events . | . . . . . . . . . . . . . Feedback Blocked . | . . . . . . . . . . . . . Robot Schematics Acquired 5 | . . . . . . . . . 5 . . . Robots Built . | . . . . . . . . . . . . . Authchips . | . . . . . . . . . . . . . Time . | . . . . . . . . . . . . . Total Robot Build Rating . | . . . . . . . . . . . . . Part Schematics Acquired 12 | . . . . . . . 1 . 11 . . . Parts Built . | . . . . . . . . . . . . . Authchips . | . . . . . . . . . . . . . Time . | . . . . . . . . . . . . . Total Part Build Rating . | . . . . . . . . . . . . . Parts Repaired 4 | . . . . 2 . . 1 . . . 1 . Time 151 | . . . . 88 . . 44 . . . 19 . Parts Recycled . | . . . . . . . . . . . . . Recycled Matter . | . . . . . . . . . . . . . Retrieved Matter . | . . . . . . . . . . . . . Retrieved Components 12 | . . . . . . . . . . . 10 2 Parts Scanalyzed 1 | . . . . . . . 1 . . . . . Part Schematics Acquired . | . . . . . . . . . . . . . Parts Damaged 1 | . . . . . . . 1 . . . . . Bothacking | -11 -10 -10 -10 -8 -8 -8 -7 -7 -7 -6 -6 -6 ------------ Run | Yrd Mat Min Sub Mat Gar Mat Fac Low Dat Pro Fac Ext Used RIF Installer 1 | . . . . . 1 . . . . . . . Robots Hacked . | . . . . . . . . . . . . . Non-combat . | . . . . . . . . . . . . . Combat . | . . . . . . . . . . . . . Robot Hacks Applied . | . . . . . . . . . . . . . Relay Couplers Released 7 | . . . . . 3 . . . . . 4 . Programmers 7 | . . . . . 3 . . . . . 4 . Fabnet Peak Effective % . | . . . . . . . . . . . . . Robots Rewired 5 | . . . . . 3 . . 2 . . . . Allies Hacked . | . . . . . . . . . . . . . Hacks Repelled . | . . . . . . . . . . . . . Allies | -11 -10 -10 -10 -8 -8 -8 -7 -7 -7 -6 -6 -6 -------- Run | Yrd Mat Min Sub Mat Gar Mat Fac Low Dat Pro Fac Ext Total Allies 5 | . . . . . 3 . . 2 . . . . Largest Group 3 | . . . . . 3 . . 2 2 2 . . Highest-Rated Group 72 | . . . . . 72 . . 52 52 52 . . Highest-Rated Ally 32 | . . . . . 24 . . 32 32 32 . . Total Orders . | . . . . . . . . . . . . . Ally Attacks 25 | . . . . . 18 . . . . 7 . . Total Damage 631 | . . . . . 370 . . . . 261 . . Kills 6 | . . . . . 5 . . . . 1 . . Allies Corrupted . | . . . . . . . . . . . . . Allies Melted . | . . . . . . . . . . . . . Intel | -11 -10 -10 -10 -8 -8 -8 -7 -7 -7 -6 -6 -6 ------- Run | Yrd Mat Min Sub Mat Gar Mat Fac Low Dat Pro Fac Ext Robot Analysis Total 1 | . 1 . . . . . . . . . . . Derelict Logs Recovered 3 | . . 2 . . . . . 1 . . . . Drone Launches . | . . . . . . . . . . . . . Drone Recoveries . | . . . . . . . . . . . . . Exploration | -11 -10 -10 -10 -8 -8 -8 -7 -7 -7 -6 -6 -6 ------------- Run | Yrd Mat Min Sub Mat Gar Mat Fac Low Dat Pro Fac Ext Turns Passed 11178 | 63 714 464 819 1129 973 639 1535 1665 144 356 2416 261 Spaces Moved 5439 | 39 373 185 510 441 418 326 781 949 86 187 1020 124 Core 60 | 4 . . . . . . . . . . 26 30 Treads 5025 | 33 373 185 230 441 418 326 781 949 86 187 987 29 Legs 18 | . . . . . . . . . . . . 18 Wheels 336 | 2 . . 280 . . . . . . . 7 47 Hover . | . . . . . . . . . . . . . Flight . | . . . . . . . . . . . . . Fastest Speed 50 | 50 160 160 95 160 163 163 162 162 162 162 50 50 Average Speed 163 | 144 160 160 133 163 165 163 162 162 162 162 185 140 Slowest Speed 245 | 160 160 160 160 240 245 163 162 162 162 162 245 240 Overloaded Moves . | . . . . . . . . . . . . . Propulsion Burnouts . | . . . . . . . . . . . . . Robots Hopped . | . . . . . . . . . . . . . Cave-ins Triggered . | . . . . . . . . . . . . . Exploration Rate (%) 40 | 3 52 40 39 39 58 19 23 90 68 43 31 27 Regions Visited 12 Branch Regions 6 Pre-discovered Areas 1 | . . . . . . . . . 1 . . . Known Exits Taken 1 | . . . . 1 . . . . . . . . Unknown Exits Taken 10 | 1 1 1 1 . . 1 1 1 1 1 1 . Scrap Searched 7 | . . 1 4 . . . . 1 . 1 . . Spaces Dug . | . . . . . . . . . . . . . Terrain Destroyed 121 | . . . . . 1 1 11 . . . 103 5 Melee . | . . . . . . . . . . . . . Projectile 7 | . . . . . 1 1 . . . . . 5 AOE 114 | . . . . . . . 11 . . . 103 . Terrain Rammed . | . . . . . . . . . . . . . Walls Destroyed . | . . . . . . . . . . . . . Machines Disabled . | . . . . . . . . . . . . . Actions | -11 -10 -10 -10 -8 -8 -8 -7 -7 -7 -6 -6 -6 --------- Run | Yrd Mat Min Sub Mat Gar Mat Fac Low Dat Pro Fac Ext Total 6874 | 44 439 310 598 728 570 407 962 1018 91 211 1317 179 Wait 574 | . 18 93 17 188 5 34 93 12 . 10 82 22 Move 5428 | 38 372 184 509 441 417 325 780 948 85 186 1019 124 Hop . | . . . . . . . . . . . . . Pick Up 81 | 1 10 3 12 11 5 8 9 2 . 1 18 1 Fast Attach 93 | 4 5 1 11 7 3 7 13 1 3 . 25 13 Attach 51 | . . 1 4 6 2 1 3 2 . 1 26 5 Detach 15 | 1 . . 4 . . . 1 . . . 7 2 Swap 37 | . 1 1 2 5 8 3 3 2 . . 12 . Drop 108 | . 2 1 12 14 9 15 19 6 3 . 27 . Fire 404 | . 31 26 27 56 58 13 40 27 . 13 101 12 Melee . | . . . . . . . . . . . . . Ram . | . . . . . . . . . . . . . Kick . | . . . . . . . . . . . . . Crush 3 | . . . . . . 1 1 1 . . . . Escape Stasis . | . . . . . . . . . . . . . Rewire 80 | . . . . . 63 . . 17 . . . . Trap . | . . . . . . . . . . . . . Miscellaneous . | . . . . . . . . . . . . . Route ------- -11/Scrapyard -10/Materials -10/Mines -10/Subcaves -8/Materials (discovered 2 exits: *Fac / Gar) -8/Garrison (discovered 3 exits: *Mat x3) -8/Materials -7/Factory (discovered 3 exits: *Fac / *Low x2) -7/Lower Caves (discovered 2 exits: [*Low] / *Dat) -7/Data Miner -6/Proximity Caves -6/Factory (discovered 3 exits: *Fac x2 / *Ext) -6/Extension History --------- Turn | Location | Event 8 | -11/Scrapyard | Discovered new exit (range 16) 64 | -11/Scrapyard | Entered Materials 310 | -10/Materials | Build established: Mutant 447 | -10/Materials | Discovered new exit (range 9) 778 | -10/Materials | Entered Mines 779 | -10/Mines | Assembled infested the area 786 | -10/Mines | Met a Derelict bent on vengeance 1023 | -10/Mines | Learned 2 Materials zone layouts 1179 | -10/Mines | Learned Materials terminal intel 1187 | -10/Mines | Received a Rocket Launcher from a helpful Derelict 1235 | -10/Mines | Discovered new exit (range 3) 1242 | -10/Mines | Entered Subcaves 1360 | -10/Subcaves | Core integrity fell below 50% 1520 | -10/Subcaves | Core integrity fell below 20% 1685 | -10/Subcaves | Shifting Twisted Machinery released Sub. Shrapnel Launcher 1885 | -10/Subcaves | Discovered new exit (range 15) 2061 | -10/Subcaves | Entered Materials 2061 | -8/Materials | Evolved 4 slots: Propulsion x1, Utility x2, Weapon x1 2063 | -8/Materials | Loaded intel: 12 terminal locations 2644 | -8/Materials | Build established: Scavenger-Tank 2903 | -8/Materials | Discovered new exit (range 16) 3085 | -8/Materials | Repaired Flak Gun 3131 | -8/Materials | Repaired Imp. Cooling System 3190 | -8/Materials | Identified exit to Garrison 3190 | -8/Materials | Entered Garrison 3261 | -8/Garrison | Triggered checkpoint 3354 | -8/Garrison | Destroyed 13 combat bots 3380 | -8/Garrison | Triggered checkpoint 3482 | -8/Garrison | Triggered checkpoint 3600 | -8/Garrison | Discovered new exit (range 9) 3660 | -8/Garrison | Installed Relay Interface Framework 3804 | -8/Garrison | Triggered checkpoint 3836 | -8/Garrison | Triggered checkpoint 3863 | -8/Garrison | Discovered new exit (range 5) 4140 | -8/Garrison | Discovered new exit (range 15) 4163 | -8/Garrison | Entered Materials 4233 | -8/Materials | Core integrity fell below 50% 4701 | -8/Materials | Discovered new exit (range 7) 4802 | -8/Materials | Entered Factory 4802 | -7/Factory | Evolved 2 slots: Propulsion x1, Utility x1 4875 | -7/Factory | Discovered new exit (range 15) 5622 | -7/Factory | Repaired Imp. Medium Armor Plating 6002 | -7/Factory | Discovered new exit (range 8) 6303 | -7/Factory | Garrison activated, responded to threat 6319 | -7/Factory | Discovered new exit (range 8) 6337 | -7/Factory | Entered Lower Caves 6510 | -7/Lower Caves | Learned location of 1 exit from Factory 6761 | -7/Lower Caves | Attracted the attention of an 0b10 checkpoint 7050 | -7/Lower Caves | Discovered new exit (range 14) 7096 | -7/Lower Caves | Encountered a Warlord checkpoint 7234 | -7/Lower Caves | Attracted the attention of an 0b10 outpost 7287 | -7/Lower Caves | Destroyed 9 combat bots 7997 | -7/Lower Caves | A Derelict revealed a hidden shortcut to meet someone special 8002 | -7/Lower Caves | Entered Data Miner 8002 | -7/Data Miner | Accompanied by 2 allies 8002 | -7/Data Miner | Discovered new exit (range 7) 8006 | -7/Data Miner | Build established: Scavenger-Gunner 8035 | -7/Data Miner | Met Data Miner 8067 | -7/Data Miner | Learned location of Section 7 (-2) 8067 | -7/Data Miner | Acquired the access code to Warlord's prototype stash 8088 | -7/Data Miner | Received God Mode back door access code from Data Miner 8146 | -7/Data Miner | Entered Proximity Caves 8146 | -6/Proximity Caves | Accompanied by 2 allies 8308 | -6/Proximity Caves | Attracted the attention of an 0b10 checkpoint 8361 | -6/Proximity Caves | Spotted B-75 Beast 8389 | -6/Proximity Caves | Destroyed B-75 Beast 8481 | -6/Proximity Caves | Discovered new exit (range 15) 8502 | -6/Proximity Caves | Entered Factory 8502 | -6/Factory | Evolved 2 slots: Utility x1, Weapon x1 8503 | -6/Factory | Identified exit to Factory 9390 | -6/Factory | Garrison activated, responded to threat 10006 | -6/Factory | Build established: Scavenger-Tank 10428 | -6/Factory | Discovered exit to Factory (range 7) 10506 | -6/Factory | Build established: Tank 10507 | -6/Factory | Repaired Arm. Treads 10602 | -6/Factory | First assault squad dispatched 10725 | -6/Factory | Lost 3 parts (1p2w) 10851 | -6/Factory | Cargo convoy interrupted 10894 | -6/Factory | Core integrity fell below 50% 10900 | -6/Factory | Released all parts (5) 10907 | -6/Factory | Core integrity fell below 20% 10912 | -6/Factory | Discovered new exit (range 11) 10918 | -6/Factory | Entered Extension 10937 | -6/Extension | Lost 15 parts (1p6n3u5w) 11179 | -6/Extension | Destroyed by Y-54 Guardian with Gatling Laser Last Messages --------------- 11144_ Overheating: Gauss Rifle damaged (-22). 11144_ Acquired Flexi-carbon Leg. 11146_ Power failure, Imp. Deuterium Engine shutdown. 11148_ Overheating: Matter decay (-20). 11152_ Overheating: System interference. 11152_ Terrain Scanner temporarily disabled. 11152_ Thermal Shield temporarily disabled. 11152_ Phase Cannon temporarily disabled. 11153_ Acquired 47 matter. 11158_ System corrupted: Component data lost. 11166_ U-05 Engineer builds a Door. 11171_ Slug penetrates Y-54 Guardian. 11171_ U-05 Engineer builds a Wall. 11174_ Lgt. Treads destroyed. 11174_ Slug penetrates Y-54 Guardian. 11174_ Y-54 Guardian destroyed. 11176_ Gauss Rifle destroyed. 11178_ Slug penetrates Y-54 Guardian. 11179_ Imp. Deuterium Engine destroyed. Map ----- +----------------------------------------------------+ | | | | | | | | | | | | | | | | | | | | | | | | | | | | | | | | | | | | | | | | | | | ?#?????#?????????#???????????????????????????????? | | ???????????#?????????????????????????????????????? | | ###########??????????????????????????????????????? | | # ###################### ????????? | | + + u @ w= ????????? | | #/ #"##### ^ ????????? | | # !## ##?# !!!###???????????? | | ##+########?# #?# """"""" !!!#?????????????? | | #?????????# ## """"""" !!!#?????????????? | | #?#????????### =[! #?????????????? | | #??????#?#???# !Y* #?????????????? | | #????????????# ##########;;#?????????????? | | ###########??# #?????????? ????????????? | | ? ??????????? ???????????? | | ^^ ???????????b????????????? | | ^ ???????????????????????? | | ^ ???????????????????????? | | ##############?#########?????????????????????????? | | ??#??????????????????????????????????????????????? | | ?????????????????????????????????????????????????? | | ???????????#?????????????????????????????????????? | | ?#??#????????????????????????????????????????????? | | ?????????????????????????????????????????????????? | | ?????????????????????????????????????????????????? | | ??#??????????????????????????????????????????????? | | ?????????????????????????????????????????????????? | | ?????????????????????????????????????????????????? | | ?????????????????????????????????????????????????? | | ?????????????????????????????????????????????????? | +----------------------------------------------------+ Best States ------------- Heat Dissipation 64 Coolant Potential 50 Energy Generation 17 Energy Capacity 300 Matter Stores 300 Matter Capacity 300 Sight Range 16 Robot Scan Range 15 Terrain Scan Range 14 Terrain Scan Density 10 Armor Coverage 600 Resistance: TH 20 Evasion (%) 55 Targeting Accuracy 10 Target Analysis 5 Core Analysis 6 Armor Integrity Analysis 30 Recoil Reduction 6 Offensive Hacking 10 Item Schematics ----------------- Imp. Hardlight Generator | -7/Factory | Hacked Combat Drone Bay | -7/Data Miner | Free Lgt. Regenerative Plating | -7/Data Miner | Free Cld. Aerolev Unit | -7/Data Miner | Free Gravity Neutralizer | -7/Data Miner | Free Gui. EMP Blaster | -7/Data Miner | Free Hvy. Treads | -7/Data Miner | Free Imp. Launcher Guidance Computer | -7/Data Miner | Free Hvy. Shock Bomb Launcher | -7/Data Miner | Free Wave Gun | -7/Data Miner | Free Adv. Thermal Shield | -7/Data Miner | Free Myomer Leg | -7/Data Miner | Free Robot Schematics ------------------ X-67 Chaingunner | -7/Data Miner | Free G-50 Soldier | -7/Data Miner | Free S-27 Virus | -7/Data Miner | Free H-55 Commando | -7/Data Miner | Free R-10 Processor | -7/Data Miner | Free Fabricated ------------ Nothing Alien Tech Used ----------------- None Achievements -------------- None Challenges ------------ None Game ------ Seed gottagofast Manual? 1 Play Time 01:27:39 Cumulative 165.0 hours Start 2024.06.08 @ 13:29:57 End 2024.06.08 @ 20:01:39 Sessions 3 Manual Loads 0 Difficulty Rogue Special Mode None Game No. 168 Rogue 168 Adventurer 0 Explorer 0 Win Type - Total 10 Types 9/0/0/1/0/0/0/0/0 Lore% 67 Gallery% 78 Achievement% 64 Wizard Run 0 Options --------- Layout 1 ASCII 0 Keyboard 0 Movement Numpad Keybinds 0 Fullscreen 1 Font 24/Smallcaps Map View 50x35 Zoom Use 0% Tactical HUD 1 Map Filters NONE Filters NONE Steam 1 RUN: 77670c08-7dc3-43ee-8b6c-feba160a1670